bitfinex-derivatives/quotes_ETHF0:USTF0_20250604
["timestamp","ask_amount","ask_price","bid_price","bid_amount"]
[1749022854477,5.08418029,2627.2,2627.1,22.57987]
[1749022856876,0.76089,2627.0,2626.9,1.41910852]
[1749022857085,1.87643029,2627.0,2626.9,0.00570852]
[1749022857382,1.87643029,2627.0,2626.9,18.12062852]
[1749022857777,1.87643029,2627.0,2626.9,18.12162852]
[1749022858280,1.87643029,2627.0,2626.9,17.36070852]
[1749022858583,3.77013029,2627.0,2626.9,17.36070852]
[1749022859172,2.65459,2627.0,2626.9,17.36070852]
[1749022859378,3.76753619,2627.0,2626.9,17.36070852]
[1749022860486,3.76753619,2627.0,2626.9,0.00570852]
[1749022861787,3.76659596,2627.0,2626.9,0.00570852]
[1749022862585,3.76659596,2627.0,2626.9,0.76662852]
[1749022862986,3.76659596,2627.0,2626.9,0.00570852]
[1749022863581,3.76659596,2627.0,2626.9,0.76662852]
[1749022864181,3.76659596,2627.0,2626.9,0.83367454]
[1749022864683,1.11200596,2627.0,2626.9,0.83367454]
[1749022864891,1.11200596,2627.0,2626.9,2.75227454]
[1749022869588,3.96864,2627.2,2627.1,0.76087]
[1749022869786,5.08028407,2627.2,2627.1,0.76087]
[1749022869985,4.31944407,2627.2,2627.1,0.76087]
[1749022870995,5.08028407,2627.2,2627.1,0.76087]
[1749022872578,4.31944407,2627.2,2627.1,0.76087]
[1749022872785,5.08028407,2627.2,2627.1,0.76087]
[1749022873283,4.31944407,2627.2,2627.1,5.22487]
[1749022873584,4.32036649,2627.2,2627.1,5.22487]
[1749022873789,1.11256649,2627.2,2627.1,5.22487]
[1749022874084,1.11256649,2627.2,2627.1,5.85197]
[1749022877690,3.2078,2627.5,2627.4,0.76078]
[1749022877888,4.32093773,2627.5,2627.4,18.11378]
[1749022878585,5.08168773,2627.5,2627.4,18.11378]
[1749022880484,5.08168773,2627.5,2627.4,18.18082602]
[1749022881187,1.87388773,2627.5,2627.4,18.18082602]
[1749022881585,1.87394802,2627.5,2627.4,18.18082602]
[1749022881792,5.08174802,2627.5,2627.4,18.18082602]
[1749022882676,5.08174802,2627.5,2627.4,0.82782602]
[1749022882878,5.08174802,2627.5,2627.4,18.17882602]
[1749022885596,3.96855,2627.5,2627.4,18.17882602]
[1749022885894,5.08178119,2627.5,2627.4,18.17882602]
[1749022886085,5.08177494,2627.5,2627.4,18.17882602]
[1749022886287,4.32102494,2627.5,2627.4,18.17882602]
[1749022886694,5.08177494,2627.5,2627.4,18.17882602]
[1749022888794,4.32102494,2627.5,2627.4,18.17882602]
[1749022889589,5.08177494,2627.5,2627.4,18.17882602]
[1749022889789,4.32122444,2627.5,2627.4,18.17882602]
[1749022891296,5.08197444,2627.5,2627.4,18.17882602]
[1749022893996,5.08274424,2627.5,2627.4,18.17882602]
[1749022894996,1.87494424,2627.5,2627.4,18.17882602]
[1749022895197,5.08274424,2627.5,2627.4,18.17882602]
[1749022895996,4.32199424,2627.5,2627.4,18.17882602]
[1749022896497,5.08274424,2627.5,2627.4,18.17882602]
[1749022897800,3.96855,2627.5,2627.4,18.17882602]
[1749022898096,5.083594,2627.5,2627.4,17.41804602]
[1749022898287,5.083594,2627.5,2627.4,0.06704602]
[1749022898488,0.76078,2627.4,2627.3,0.8677]
[1749022898688,0.76084,2627.2,2627.1,17.348]
[1749022898890,5.083684,2627.2,2627.1,17.348]
[1749022899494,6.336084,2627.2,2627.1,17.348]
[1749022900697,5.575244,2627.2,2626.9,5.22861852]
[1749022900897,3.128314,2627.1,2627.0,17.349]
[1749022901396,3.128314,2627.1,2627.0,18.1099]
[1749022906296,3.128314,2627.1,2627.0,17.349]
[1749022906997,3.128314,2627.1,2627.0,18.1099]
[1749022907196,0.7609,2627.0,2626.9,5.22860852]
[1749022907401,3.188944,2627.0,2626.9,4.46770852]
[1749022908294,3.188944,2627.0,2626.9,0.00570852]
[1749022909197,0.76098,2626.7,2626.6,0.868]
[1749022909403,0.76107,2626.4,2626.3,18.11109]
[1749022909596,5.083914,2626.4,2626.3,18.11109]
[1749022909902,5.08125396,2626.4,2626.3,18.11109]
[1749022910299,4.32018396,2626.4,2626.3,18.11109]
[1749022910503,5.08125396,2626.4,2626.3,18.11109]
[1749022911806,4.32018396,2626.4,2626.3,18.11109]
[1749022912907,5.08125396,2626.4,2626.3,18.11109]
[1749022913908,5.07964658,2626.4,2626.3,18.11109]
[1749022915308,5.07964658,2626.4,2626.3,0.76109]
[1749022915705,5.07964658,2626.4,2626.3,18.11109]
[1749022918001,5.07860733,2626.4,2626.3,18.11109]
[1749022919502,5.07860733,2626.4,2626.3,18.76639]
[1749022920607,0.76113,2626.2,2626.1,0.00570852]
[1749022920900,0.7613,2625.6,2625.5,0.6263]
[1749022921100,3.9691,2625.6,2625.5,0.6173]
[1749022921311,0.76133,2625.5,2625.4,21.813]
[1749022921503,1.10944665,2625.5,2625.4,21.813]
[1749022921700,3.2078,2625.9,2625.4,23.71635]
[1749022921909,3.2078,2625.9,2625.8,0.76125]
[1749022922800,3.96902,2625.9,2625.8,0.76125]
[1749022923000,3.2078,2625.9,2625.8,0.76125]
[1749022924111,3.2078,2625.9,2625.8,5.28929602]
[1749022924811,3.96902,2625.9,2625.8,5.28929602]
[1749022925105,5.09616447,2625.9,2625.8,5.28929602]
[1749022926420,5.09616447,2625.9,2625.8,0.06704602]
[1749022927415,6.99266447,2625.9,2625.8,0.06704602]
[1749022928415,6.99201015,2625.9,2625.8,0.06704602]
[1749022931613,5.69921015,2625.9,2625.8,0.06704602]
[1749022932518,6.95559109,2625.9,2625.8,0.06704602]
[1749022935014,0.76133,2625.5,2625.4,0.00570852]
[1749022935210,5.09490109,2625.5,2625.4,17.36070852]
[1749022935409,5.09490109,2625.5,2625.4,0.00570852]
[1749022936017,6.36930109,2625.5,2625.4,0.00570852]
[1749022936611,6.36948374,2625.5,2625.4,0.00570852]
[1749022937712,5.76228374,2625.5,2625.4,0.00570852]
[1749022938119,5.76228374,2625.5,2625.4,0.65130852]
[1749022939520,5.76228374,2625.5,2625.4,0.71835454]
[1749022940520,5.76269403,2625.5,2625.4,1.47971454]
[1749022941123,5.76269403,2625.5,2625.4,0.71835454]
[1749022942222,5.76269403,2625.5,2625.4,1.47971454]
[1749022942623,4.33416403,2625.5,2625.4,1.47971454]
[1749022942818,5.09549403,2625.5,2625.4,0.71835454]
[1749022943323,5.09549403,2625.5,2625.4,17.42975454]
[1749022943722,5.09549403,2625.5,2625.4,18.19111454]
[1749022944321,5.09549403,2625.5,2625.4,17.42975454]
[1749022944523,5.09121397,2625.5,2625.4,17.42975454]
[1749022944827,5.09121397,2625.5,2625.4,18.19111454]
[1749022945625,5.09121397,2625.5,2625.4,17.42975454]
[1749022945825,5.09121397,2625.5,2625.4,18.19111454]
[1749022946123,5.09121397,2625.5,2625.4,17.42975454]
[1749022946325,5.09163213,2625.5,2625.4,17.42975454]
[1749022947532,3.96913,2625.5,2625.4,17.42975454]
[1749022949135,3.96913,2625.5,2625.4,0.07275454]
[1749022950136,5.09383127,2625.5,2625.4,0.07275454]
[1749022952244,5.09383127,2625.5,2625.4,0.72315454]
[1749022952447,5.09383127,2625.5,2625.4,1.48451454]
[1749022952744,5.09383607,2625.5,2625.4,1.48451454]
[1749022952945,5.09383607,2625.5,2625.4,0.72315454]
[1749022953837,5.09383607,2625.5,2625.4,1.48451454]
[1749022954043,5.09383607,2625.5,2625.4,0.72315454]
[1749022956844,5.09500775,2625.5,2625.4,0.72315454]
[1749022959242,5.09500775,2625.5,2625.4,0.07275454]
[1749022960852,5.09529978,2625.5,2625.4,0.07275454]
[1749022962151,5.70639978,2625.5,2625.4,0.07275454]
[1749022964856,4.58023,2625.5,2625.4,0.07275454]
[1749022965045,5.70665566,2625.5,2625.4,0.07275454]
[1749022968956,5.70634696,2625.5,2625.4,0.07275454]
[1749022969252,5.70631507,2625.5,2625.4,0.07275454]
[1749022973459,2.49851507,2625.5,2625.4,0.07275454]
[1749022973660,5.70631507,2625.5,2625.4,0.07275454]
[1749022977859,5.09521507,2625.5,2625.4,0.07275454]
[1749022978553,5.09521507,2625.5,2625.4,1.98315454]
[1749022978755,5.09521507,2625.5,2625.4,2.58665454]
[1749022979558,5.09521507,2625.5,2625.4,1.29055454]
[1749022979859,5.09521507,2625.5,2625.4,0.07275454]
[1749022980050,0.76145,2625.1,2625.0,17.9585]
[1749022980255,5.09533507,2625.1,2625.0,17.9585]
[1749022980454,5.09533507,2625.1,2625.0,0.6035]
[1749022980663,3.96925,2625.1,2625.0,0.6035]
[1749022980862,5.09530707,2625.1,2625.0,0.6035]
[1749022983060,0.76151,2624.9,2624.8,0.62000852]
[1749022983269,1.88756707,2624.9,2624.8,0.62000852]
[1749022983762,1.88818939,2624.9,2624.8,0.62000852]
[1749022983955,1.88818939,2624.9,2624.8,1.38154852]
[1749022984156,1.88818939,2624.9,2624.8,0.62000852]
[1749022985761,1.88818939,2624.9,2624.8,17.97500852]
[1749022987562,0.76151,2624.9,2624.8,0.62000852]
[1749022987766,1.88730553,2624.9,2624.8,17.97500852]
[1749022989367,1.88730553,2624.9,2624.8,0.00570852]
[1749022989569,3.13980553,2624.9,2624.8,0.00570852]
[1749022991772,3.13904863,2624.9,2624.8,0.00570852]
[1749022991972,1.88654863,2624.9,2624.8,0.00570852]
[1749022992168,1.88654863,2624.9,2624.8,0.76724852]
[1749022992872,1.88654863,2624.9,2624.8,1.40654852]
[1749022993571,1.88654863,2624.9,2624.8,0.64500852]
[1749022993772,1.88654863,2624.9,2624.8,1.40654852]
[1749022994370,1.88654863,2624.9,2624.8,0.64500852]
[1749022996470,1.88654863,2624.9,2624.8,17.36170852]
[1749022997273,1.88654863,2624.9,2624.8,18.12324852]
[1749022997777,1.88654863,2624.9,2624.8,17.36170852]
[1749022998678,1.88654863,2624.9,2624.8,18.12324852]
[1749022998872,5.09434863,2624.9,2624.8,18.12324852]
[1749022999279,5.09434863,2624.9,2624.8,18.19029454]
[1749023000970,5.09434863,2624.9,2624.8,17.42875454]
[1749023001879,5.09434863,2624.9,2624.8,19.46869454]
[1749023003881,5.09611463,2624.9,2624.8,19.46869454]
[1749023006283,3.96931,2624.9,2624.8,19.46869454]
[1749023006480,5.09649604,2624.9,2624.8,19.46869454]
[1749023006686,4.33498604,2624.9,2624.8,19.46869454]
[1749023007380,1.88869604,2624.9,2624.8,19.46869454]
[1749023007981,1.88891155,2624.9,2624.8,19.46869454]
[1749023009672,1.12740155,2624.9,2624.8,19.46869454]
[1749023010885,1.88891155,2624.9,2624.8,19.46869454]
[1749023011081,1.12740155,2624.9,2624.8,19.46869454]
[1749023011786,5.09671155,2624.9,2624.8,19.46569454]
[1749023012890,4.33520155,2624.9,2624.8,19.46569454]
[1749023013081,1.12740155,2624.9,2624.8,19.46569454]
[1749023013785,1.88891155,2624.9,2624.8,18.18729454]
[1749023015690,1.12740155,2624.9,2624.8,18.18729454]
[1749023015994,0.7615,2625.0,2624.9,0.76148]
[1749023016295,1.88975502,2625.0,2624.9,0.76148]
[1749023016496,1.88975502,2625.0,2624.9,1.41158]
[1749023017005,1.12825502,2625.0,2624.9,1.41158]
[1749023018306,1.88973502,2625.0,2624.9,23.22158]
[1749023018505,1.12825502,2625.0,2624.9,23.22158]
[1749023018705,1.88973502,2625.0,2624.9,23.22158]
[1749023019006,1.12825502,2625.0,2624.9,23.22158]
[1749023019201,0.76147,2625.1,2625.0,0.76148]
[1749023019401,1.88942596,2625.1,2625.0,0.76148]
[1749023020102,1.889392,2625.1,2625.0,0.76148]
[1749023022300,1.127922,2625.1,2625.0,0.76148]
[1749023022706,1.127922,2625.1,2625.0,1.42718]
[1749023024207,3.96924,2625.2,2625.1,0.76145]
[1749023024411,5.09714207,2625.2,2625.1,0.76145]
[1749023028111,5.09793536,2625.2,2625.1,18.11145]
[1749023030715,5.09793536,2625.2,2625.1,18.17849602]
[1749023032012,5.09791536,2625.2,2625.1,18.17849602]
[1749023032212,5.09775453,2625.2,2625.1,18.17849602]
[1749023036321,5.09812479,2625.2,2625.1,18.17849602]
[1749023036622,5.09812479,2625.2,2625.1,0.82849602]
[1749023036923,5.09812479,2625.2,2625.1,18.17649602]
[1749023037724,5.09812479,2625.2,2625.1,0.06704602]
[1749023038022,5.09812479,2625.2,2625.1,22.63449602]
[1749023039022,5.09812479,2625.2,2625.1,21.87304602]
[1749023039522,5.71592479,2625.2,2625.1,21.87304602]
[1749023040024,5.71592479,2625.2,2625.1,22.63449602]
[1749023040524,5.71647125,2625.2,2625.1,0.06704602]
[1749023040921,0.76148,2625.0,2624.9,4.456]
[1749023041225,0.76151,2624.9,2624.8,0.00570852]
[1749023041525,0.76165,2624.4,2624.3,0.76166]
[1749023041818,5.64125125,2624.9,2624.7,17.348]
[1749023041819,0.76154,2624.8,2624.7,17.348]
[1749023042025,6.34534985,2624.8,2624.7,17.348]
[1749023043826,0.76159,2624.6,2624.5,4.46170852]
[1749023044124,1.89019985,2624.6,2624.5,21.81070852]
[1749023044328,1.89019985,2624.6,2624.5,22.57232852]
[1749023044627,3.13759985,2624.6,2624.5,22.57232852]
[1749023045827,3.13759985,2624.6,2624.5,21.81070852]
[1749023046234,3.13759985,2624.6,2624.5,4.46170852]
[1749023046524,3.13759985,2624.6,2624.5,21.81070852]
[1749023046729,3.13759985,2624.6,2624.5,4.46170852]
[1749023046928,3.13759985,2624.6,2624.5,21.81170852]
[1749023047727,3.13759985,2624.6,2624.5,22.57332852]
[1749023048321,0.76159,2624.6,2624.5,22.57332852]
[1749023048522,1.87928381,2624.6,2624.5,22.57332852]
[1749023050223,1.11769381,2624.6,2624.5,22.57332852]
[1749023050924,1.87928381,2624.6,2624.5,22.57332852]
[1749023051133,1.117237,2624.6,2624.5,22.57332852]
[1749023051523,1.117237,2624.6,2624.5,23.19532852]
[1749023052425,1.878827,2624.6,2624.5,23.19532852]
[1749023052927,1.878827,2624.6,2624.5,23.19432852]
[1749023053631,1.117237,2624.6,2624.5,23.19432852]
[1749023054929,1.41097,2624.7,2624.6,0.76159]
[1749023055129,2.52841233,2624.7,2624.6,0.76159]
[1749023055442,1.76684233,2624.7,2624.6,0.76159]
[1749023055929,1.11744233,2624.7,2624.6,0.76159]
[1749023056233,1.11744233,2624.7,2624.6,1.41769]
[1749023056426,1.11744233,2624.7,2624.6,2.72299]
[1749023057623,0.00570852,2625.0,2624.9,0.76151]
[1749023057835,0.00570852,2625.0,2624.9,5.21851]
[1749023058227,0.00570852,2625.0,2624.9,5.84481]
[1749023060936,0.00570852,2625.0,2624.9,23.19281]
[1749023061135,0.00570852,2625.0,2624.9,23.25985602]
[1749023063536,3.21350852,2625.0,2624.9,5.91185602]
[1749023063737,0.00570852,2625.0,2624.9,23.25885602]
[1749023064123,3.21350852,2625.0,2624.9,1.45485602]
[1749023064328,3.21350852,2625.0,2624.9,23.25785602]
[1749023069442,3.97498852,2625.0,2624.9,23.25785602]
[1749023069638,4.32681325,2625.0,2624.9,23.25785602]
[1749023071143,3.21350852,2625.0,2624.9,23.25785602]
[1749023071442,4.32668241,2625.0,2624.9,23.25785602]
[1749023072343,1.11888241,2625.0,2624.9,23.25785602]
[1749023075250,1.11882348,2625.0,2624.9,23.25785602]
[1749023079259,0.00570852,2625.0,2624.9,26.46565602]
[1749023082461,0.00570852,2625.0,2624.9,72.26565602]
[1749023082957,8.52e-06,2625.0,2624.9,72.26565602]
[1749023088665,8.52e-06,2625.0,2624.9,72.25865602]
[1749023089570,8.52e-06,2625.0,2624.9,67.25865602]
[1749023090768,8.52e-06,2625.0,2624.9,49.91865602]
[1749023090967,8.52e-06,2625.0,2624.9,67.25865602]
[1749023093263,8.52e-06,2625.0,2624.9,105.64165602]
[1749023095073,8.52e-06,2625.0,2624.9,102.43385602]
[1749023095274,8.52e-06,2625.0,2624.9,105.64165602]
[1749023095572,8.52e-06,2625.0,2624.9,105.64065602]
[1749023098964,8.52e-06,2625.0,2624.9,102.43285602]
[1749023099371,8.52e-06,2625.0,2624.9,105.64065602]
[1749023109078,0.6114,2625.4,2625.0,1.90366]
[1749023109281,3.2078,2625.8,2625.7,0.76128]
[1749023109282,1.8366,2625.8,2625.7,0.76128]
[1749023109581,1.12690703,2625.8,2625.7,22.54928]
[1749023109782,0.6067,2626.1,2626.0,0.76119]
[1749023109977,1.73366446,2626.1,2626.0,0.76119]
[1749023110285,3.72872446,2626.1,2626.0,0.76119]
[1749023110578,3.72872446,2626.1,2625.6,41.4489]
[1749023110579,7.96756446,2626.1,2625.6,40.8]
[1749023110781,0.76128,2625.7,2625.6,21.787]
[1749023110981,1.88824446,2625.7,2625.6,22.54831]
[1749023111183,9.33154446,2625.7,2625.6,22.54831]
[1749023111385,8.57026446,2625.7,2625.6,22.54831]
[1749023112275,9.33154446,2625.7,2625.6,22.54831]
[1749023112880,8.57026446,2625.7,2625.6,22.54831]
[1749023113080,9.33154446,2625.7,2625.6,22.54831]
[1749023113285,4.33154446,2625.7,2625.6,22.54831]
[1749023113485,3.57026446,2625.7,2625.6,22.54831]
[1749023113692,3.56899636,2625.7,2625.6,22.54831]
[1749023113987,4.33027636,2625.7,2625.6,22.54831]
[1749023114285,3.56899636,2625.7,2625.6,22.54831]
[1749023114786,4.33027636,2625.7,2625.6,22.54831]
[1749023115088,4.33027636,2625.7,2625.6,21.787]
[1749023115386,4.33027636,2625.7,2625.6,22.54831]
[1749023116080,4.33027636,2625.7,2625.6,4.451]
[1749023116387,4.33027636,2625.7,2625.6,21.786]
[1749023116884,0.76134,2625.5,2625.4,0.76136]
[1749023117185,0.76134,2625.5,2625.4,22.54636]
[1749023117987,1.88688919,2625.5,2625.4,22.54636]
[1749023118289,4.33334919,2625.5,2625.4,4.45]
[1749023118483,5.09468919,2625.5,2625.4,21.785]
[1749023119488,5.09468919,2625.5,2625.4,22.54636]
[1749023119689,5.09468919,2625.5,2625.4,21.785]
[1749023120692,5.09468919,2625.5,2625.4,51.172]
[1749023120990,5.09468919,2625.5,2625.4,51.23904602]
[1749023121186,5.09468919,2625.5,2625.4,33.90404602]
[1749023121382,10.09468919,2625.5,2625.4,0.06704602]
[1749023121886,10.09368861,2625.5,2625.4,44.69104602]
[1749023122287,10.09368861,2625.5,2625.4,2.83504602]
[1749023122490,10.09368861,2625.5,2625.4,10.15404602]
[1749023124092,5.09368861,2625.5,2625.4,10.15404602]
[1749023124289,10.09368861,2625.5,2625.4,10.15404602]
[1749023125185,10.09368861,2625.5,2625.4,2.83504602]
[1749023125493,10.09368861,2625.5,2625.4,10.15404602]
[1749023125988,10.0932745,2625.5,2625.4,0.06704602]
[1749023126196,10.0932745,2625.5,2625.4,9.26404602]
[1749023126694,8.96914,2625.5,2625.4,0.06704602]
[1749023126894,10.09271739,2625.5,2625.4,9.26404602]
[1749023129899,10.0921093,2625.5,2625.4,9.26404602]
[1749023134002,10.09144235,2625.5,2625.4,9.26404602]
[1749023134307,10.09144235,2625.5,2625.4,1.94504602]
[1749023134506,10.09144235,2625.5,2625.4,9.26504602]
[1749023134998,10.09144235,2625.5,2625.4,1.94504602]
[1749023135301,10.09144235,2625.5,2625.4,9.26504602]
[1749023138600,5.09144235,2625.5,2625.4,9.26504602]
[1749023139305,0.76134,2625.5,2625.4,9.89854602]
[1749023139511,0.76134,2625.5,2625.4,11.22594602]
[1749023140494,0.76134,2625.5,2625.4,2.02794602]
[1749023140694,3.96914,2625.5,2625.4,11.22694602]
[1749023141306,3.96914,2625.5,2625.4,9.89954602]
[1749023146113,3.96914,2625.5,2625.4,11.76094602]
[1749023147108,0.76132,2625.6,2625.5,0.76134]
[1749023147309,1.90284,2626.2,2625.5,4.435]
[1749023147509,1.90284,2626.2,2625.9,0.7612]
[1749023147807,0.76122,2626.0,2625.9,0.7612]
[1749023148004,0.76122,2626.0,2625.9,11.1864]
[1749023148201,1.90234,2626.9,2625.9,10.4252]
[1749023148406,0.76107,2626.4,2626.3,3.2078]
[1749023148607,0.76107,2626.4,2626.3,10.5268]
[1749023150912,0.76106,2626.5,2626.4,0.76104]
[1749023151109,0.76106,2626.5,2626.4,2.63904]
[1749023151310,1.86149879,2626.5,2626.4,1.878]
[1749023154218,1.86149879,2626.5,2626.4,2.63907]
[1749023154515,1.86149879,2626.5,2626.4,1.878]
[1749023155411,0.76107,2626.4,2626.3,3.2078]
[1749023155608,1.86150879,2626.4,2626.3,9.195]
[1749023156217,1.86056872,2626.4,2626.3,9.195]
[1749023157816,0.76113,2626.2,2626.1,0.76686852]
[1749023158013,1.86062872,2626.2,2626.1,9.96086852]
[1749023160718,1.86062872,2626.2,2626.1,1.43406852]
[1749023160918,1.86062872,2626.2,2626.1,10.62806852]
[1749023161224,1.86007078,2626.2,2626.1,10.62806852]
[1749023161624,1.86007078,2626.2,2626.1,1.43406852]
[1749023161818,1.86007078,2626.2,2626.1,10.62806852]
[1749023162823,1.86007078,2626.2,2626.1,11.90086852]
[1749023163125,1.86007078,2626.2,2626.1,2.54990852]
[1749023163324,1.86007078,2626.2,2626.1,9.86690852]
[1749023163517,1.86007078,2626.2,2626.1,0.67290852]
[1749023163818,1.86007078,2626.2,2626.1,9.19970852]
[1749023164324,0.76113,2626.2,2626.1,9.96086852]
[1749023164621,0.76113,2626.2,2626.1,9.85530852]
[1749023164821,1.85999022,2626.2,2626.1,9.85530852]
[1749023165419,1.85999022,2626.2,2626.1,0.00570852]
[1749023165620,6.85999022,2626.2,2626.1,9.26675454]
[1749023165919,1.85999022,2626.2,2626.1,9.26675454]
[1749023167021,2.48539022,2626.2,2626.1,9.26675454]
[1749023168425,2.48624366,2626.2,2626.1,9.26775454]
[1749023171021,2.48624366,2626.2,2626.1,10.02891454]
[1749023171325,1.86084366,2626.2,2626.1,9.26775454]
[1749023171527,1.86084366,2626.2,2626.1,10.02891454]
[1749023172428,1.8616854,2626.2,2626.1,10.02891454]
[1749023172929,1.8616854,2626.2,2626.1,9.26775454]
[1749023175530,1.8616854,2626.2,2626.1,36.67875454]
[1749023176525,1.86396776,2626.2,2626.1,36.67875454]
[1749023179129,1.86396776,2626.2,2626.1,29.36075454]
[1749023179431,1.86396776,2626.2,2626.1,36.67775454]
[1749023180534,1.86451376,2626.2,2626.1,36.67775454]
[1749023184441,1.86482001,2626.2,2626.1,36.67775454]
[1749023185437,1.86482001,2626.2,2626.1,37.43891454]
[1749023185637,1.86482001,2626.2,2626.1,38.73501454]
[1749023186637,1.86482001,2626.2,2626.1,37.97385454]
[1749023186837,0.76113,2626.2,2626.1,36.67775454]
[1749023187033,1.86485432,2626.2,2626.1,36.67775454]
[1749023187233,1.86485432,2626.2,2626.1,37.43891454]
[1749023187432,0.76113,2626.2,2626.1,38.73501454]
[1749023188039,0.76113,2626.2,2626.1,37.97385454]
[1749023188343,0.76113,2626.2,2626.1,27.48375454]
[1749023188640,1.86504099,2626.2,2626.1,36.67775454]
[1749023190836,1.86589412,2626.2,2626.1,36.67775454]
[1749023193336,1.86589412,2626.2,2626.1,37.09825454]
[1749023193743,1.86589412,2626.2,2626.1,29.78125454]
[1749023194048,1.86589412,2626.2,2626.1,37.09825454]
[1749023194541,1.86589412,2626.2,2626.1,29.78125454]
[1749023194741,1.86589412,2626.2,2626.1,37.09825454]
[1749023195139,1.86646384,2626.2,2626.1,37.09825454]
[1749023197644,5.07426384,2626.2,2626.1,23.68093454]
[1749023197841,7.02456384,2626.2,2626.1,23.68093454]
[1749023198043,7.02456384,2626.2,2626.1,22.97223056]
[1749023198646,12.02456384,2626.2,2626.1,22.19076056]
[1749023199148,10.91923,2626.2,2626.1,22.19076056]
[1749023199346,12.02343183,2626.2,2626.1,22.19076056]
[1749023199546,12.02343183,2626.2,2626.1,12.99676056]
[1749023199743,12.02343183,2626.2,2626.1,22.19076056]
[1749023200350,10.91923,2626.2,2626.1,12.99676056]
[1749023200648,12.02308058,2626.2,2626.1,22.19176056]
[1749023203252,12.02218718,2626.2,2626.1,22.19176056]
[1749023204650,12.02218718,2626.2,2626.1,12.99676056]
[1749023204949,12.02218718,2626.2,2626.1,22.19276056]
[1749023206956,11.38608718,2626.2,2626.1,22.19276056]
[1749023207255,11.38540578,2626.2,2626.1,22.19276056]
[1749023207454,6.38540578,2626.2,2626.1,22.19276056]
[1749023208555,5.07120578,2626.2,2626.1,22.19276056]
[1749023211255,5.07092712,2626.2,2626.1,22.19276056]
[1749023215255,3.96893,2626.2,2626.1,22.19276056]
[1749023215456,5.07128952,2626.2,2626.1,22.19276056]
[1749023219360,3.96893,2626.2,2626.1,22.19276056]
[1749023219661,5.07237296,2626.2,2626.1,22.19276056]
[1749023220263,1.86457296,2626.2,2626.1,14.87476056]
[1749023220563,1.86457296,2626.2,2626.1,22.19276056]
[1749023220864,1.86457296,2626.2,2626.1,23.46466056]
[1749023221665,5.07237296,2626.2,2626.1,23.46466056]
[1749023221967,5.07294828,2626.2,2626.1,23.46466056]
[1749023226164,5.07386705,2626.2,2626.1,23.46466056]
[1749023230068,5.07505507,2626.2,2626.1,23.46466056]
[1749023233565,5.07505507,2626.2,2626.1,12.99676056]
[1749023233863,5.07505507,2626.2,2626.1,22.19076056]
[1749023234871,6.33965507,2626.2,2626.1,22.19076056]
[1749023235063,6.33965507,2626.2,2626.1,12.99676056]
[1749023235262,6.33965507,2626.2,2626.1,22.19076056]
[1749023235659,11.33965507,2626.2,2626.1,9.72042056]
[1749023235865,11.33965507,2626.2,2626.1,8.17885923]
[1749023236075,11.33965507,2626.2,2626.1,12.33086923]
[1749023236279,11.33965507,2626.2,2626.1,0.24779924]
[1749023236574,11.33965507,2626.2,2626.1,9.12796]
[1749023236766,11.33965507,2626.2,2626.1,8.89080603]
[1749023236962,11.33965507,2626.2,2626.1,8.96992603]
[1749023237176,11.33965507,2626.2,2626.1,1.15585602]
[1749023237372,11.33965507,2626.2,2626.1,7.65791602]
[1749023237573,11.33965507,2626.2,2626.1,8.66753602]
[1749023237874,11.33965507,2626.2,2626.1,0.84959602]
[1749023238176,14.36668635,2626.2,2626.1,7.27479602]
[1749023238374,14.36668635,2626.2,2626.1,4.51210469]
[1749023238666,14.36668635,2626.2,2626.1,1.95691735]
[1749023238874,11.33777565,2626.2,2626.1,8.07821938]
[1749023239076,11.33777565,2626.2,2626.1,7.10039805]
[1749023239269,14.36592581,2626.2,2626.1,4.33926672]
[1749023239469,14.36592581,2626.2,2626.1,2.22176329]
[1749023239664,14.36592581,2626.2,2626.1,8.55930931]
[1749023240071,14.36592581,2626.2,2626.1,7.75874931]
[1749023241272,6.33777565,2626.2,2626.1,7.75874931]
[1749023241473,5.07317565,2626.2,2626.1,7.75874931]
[1749023241977,5.07167371,2626.2,2626.1,7.75874931]
[1749023242174,5.07167371,2626.2,2626.1,9.63864931]
[1749023245171,1.86387371,2626.2,2626.1,9.63864931]
[1749023246075,1.86177664,2626.2,2626.1,9.63864931]
[1749023249784,1.86183527,2626.2,2626.1,9.63864931]
[1749023250283,1.86183366,2626.2,2626.1,9.63864931]
[1749023252787,1.86183366,2626.2,2626.1,8.40464931]
[1749023253792,1.86183366,2626.2,2626.1,1.08664931]
[1749023254084,1.86183366,2626.2,2626.1,7.75874931]
[1749023254285,2.47072331,2626.2,2626.1,7.75874931]
[1749023254685,2.47072331,2626.2,2626.1,0.44074931]
[1749023254880,3.74962331,2626.2,2626.1,7.318]
[1749023255086,3.74962331,2626.2,2626.1,8.44562602]
[1749023255284,3.74962331,2626.2,2626.1,8.68084602]
[1749023256090,3.74962331,2626.2,2626.1,8.74789204]
[1749023257693,2.47072331,2626.2,2626.1,8.74789204]
[1749023258189,2.47062549,2626.2,2626.1,8.74789204]
[1749023258593,2.47062549,2626.2,2626.1,1.94404602]
[1749023258792,2.47062549,2626.2,2626.1,9.26204602]
[1749023260987,2.47062549,2626.2,2626.1,8.42868602]
[1749023261797,5.49877565,2626.2,2626.1,8.42868602]
[1749023261992,2.47062549,2626.2,2626.1,8.42868602]
[1749023262393,5.49858444,2626.2,2626.1,8.42868602]
[1749023263294,2.47043428,2626.2,2626.1,8.42868602]
[1749023263593,5.49858444,2626.2,2626.1,8.42868602]
[1749023263794,0.76119,2626.0,2625.9,26.54104852]
[1749023263996,5.06959428,2626.0,2625.9,33.76482852]
[1749023264198,5.06959428,2626.0,2625.9,32.04346852]
[1749023264400,5.06959428,2626.0,2625.9,31.05936852]
[1749023264698,8.09656377,2626.0,2625.9,31.05936852]
[1749023264998,8.09656377,2626.0,2625.9,27.61914853]
[1749023265193,8.09656377,2626.0,2625.9,25.59363853]
[1749023265390,8.09656377,2626.0,2625.9,24.44508853]
[1749023265991,8.09656377,2626.0,2625.9,23.25309853]
[1749023266294,0.76125,2625.8,2625.7,8.52e-06]
[1749023266492,4.88856522,2625.8,2625.7,8.52e-06]
[1749023266693,6.86336172,2625.8,2625.7,7.31800852]
[1749023266888,11.20349189,2625.8,2625.7,3.66829167]
[1749023267090,11.20349189,2625.8,2625.5,0.94055]
[1749023267091,0.76131,2625.6,2625.5,0.94055]
[1749023267290,5.07122172,2625.6,2625.5,7.66115]
[1749023267491,5.07122172,2625.6,2625.5,6.9857]
[1749023267897,5.07122172,2625.6,2625.5,4.30347315]
[1749023269198,5.07122172,2625.6,2625.5,4.37051917]
[1749023270098,5.06911321,2625.6,2625.5,4.37051917]
[1749023278202,5.06710391,2625.6,2625.5,4.37051917]
[1749023284802,5.06785178,2625.6,2625.5,5.67491917]